[Event "FIDE WCCC Girls-10 2024"]
[Site "Montesilvano"]
[Date "2024.11.19"]
[Round "5.36"]
[White "Afandi, Sadagul"]
[Black "Ivanova, Darina"]
[Result "1-0"]
[ECO "B37"]
[WhiteElo "1625"]
[BlackElo "1516"]
[Annotator "NA RC"]
[PlyCount "109"]
[EventDate "2024.11.18"]
[EventType "swiss"]
[EventCountry "ITA"]
[SourceTitle "playchess.com"]
[Source "ChessBase"]
[SourceQuality "1"]
[TimeControl "5400+30"]

1. e4 {[%emt 1:31:00]} c5 {[%emt 0:00:12]} 2. Nf3 {[%emt 0:00:00]} Nc6 {[%emt 0:00:13]} 3. d4 {[%emt 0:00:00]} cxd4 {[%emt 0:00:18]} 4. Nxd4 {[%emt 0:00:00]} g6 {[%emt 0:00:18]} 5. c4 {[%emt 0:00:00]} Bg7 {[%emt 0:00:17]} 6. Nc2 {[%emt 0:00:00]} Nf6 {[%emt 0:00:21]} 7. Nc3 {[%emt 0:00:00]} O-O {[%emt 0:00:33]} 8. Be2 {[%emt 0:00:00]} d6 {[%emt 0:00:20]} 9. O-O {[%emt 0:00:00]} e6 {[%emt 0:00:58]} 10. Bg5 {[%emt 0:00:00]} b6 {[%emt 0:02:43]} 11. Nb5 {[%emt 0:00:00]} d5 {[%emt 0:01:32]} 12. cxd5 {[%emt 0:00:00]} exd5 {[%emt 0:00:14]} 13. exd5 {[%emt 0:00:00]} Qxd5 {[%emt 0:00:15]} 14. Bxf6 {[%emt 0:00:00]} Qxd1 {[%emt 1:29:16]} 15. Raxd1 {[%emt 0:00:00]} Bxf6 {[%emt 0:00:00]} 16. Nc7 {[%emt 0:00:00]} Rb8 {[%emt 0:00:00]} 17. Rd6 {[%emt 0:00:00]} Be5 {[%emt 0:00:00]} 18. Rxc6 {[%emt 0:00:00]} Bd7 {[%emt 0:00:00]} 19. Rc4 {[%emt 0:00:00]} b5 {[%emt 0:00:00]} 20. Rc5 {[%emt 0:00:00]} Rfe8 {[%emt 0:00:00]} 21. Nxe8 {[%emt 0:00:00]} Rxe8 {[%emt 0:00:00]} 22. Bxb5 {[%emt 0:00:00]} Bxb5 {[%emt 0:00:00]} 23. Rxb5 {[%emt 0:00:00]} Rc8 {[%emt 0:00:00]} 24. Rxe5 {[%emt 0:00:00]} Rxc2 {[%emt 0:00:00]} 25. Rb5 {[%emt 0:00:00]} Kg7 {[%emt 0:00:00]} 26. Rd1 {[%emt 0:00:00]} Kf6 {[%emt 0:00:00]} 27. g3 {[%emt 0:00:00]} h5 {[%emt 0:00:00]} 28. Rb7 {[%emt 0:00:00]} Kg5 {[%emt 0:00:00]} 29. Rxf7 {[%emt 0:00:00]} a5 {[%emt 0:00:00]} 30. h3 {[%emt 0:00:00]} Rxb2 {[%emt 0:00:00]} 31. Rd5+ {[%emt 0:00:00]} Kh6 {[%emt 0:00:00]} 32. Rxa5 {[%emt 0:00:00]} Rb1+ {[%emt 0:00:00]} 33. Kg2 {[%emt 0:00:00]} Rb2 {[%emt 0:00:00]} 34. Ra6 {[%emt 0:00:00]} Rb8 {[%emt 0:00:00]} 35. Rff6 {[%emt 0:00:00]} Rg8 {[%emt 0:00:00]} 36. Rxg6+ {[%emt 0:00:00]} Rxg6 {[%emt 0:00:00]} 37. Rxg6+ {[%emt 0:00:00]} Kxg6 {[%emt 0:00:00]} 38. a4 {[%emt 0:00:00]} Kf7 {[%emt 0:00:00]} 39. a5 {[%emt 0:00:00]} Ke7 {[%emt 0:00:00]} 40. a6 {[%emt 0:00:00]} h4 {[%emt 0:00:00]} 41. a7 {[%emt 0:00:00]} hxg3 {[%emt 0:00:00]} 42. a8=Q {[%emt 0:00:00]} gxf2 {[%emt 0:00:00]} 43. Kxf2 {[%emt 0:00:00]} Kd7 {[%emt 0:00:00]} 44. Qa6 {[%emt 0:00:00]} Kc7 {[%emt 0:00:00]} 45. h4 {[%emt 0:00:00]} Kd7 {[%emt 0:00:00]} 46. h5 {[%emt 0:00:00]} Ke7 {[%emt 0:00:00]} 47. h6 {[%emt 0:00:00]} Kf7 {[%emt 0:00:00]} 48. h7 {[%emt 0:00:00]} Kg7 {[%emt 0:00:00]} 49. h8=Q+ {[%emt 0:24:00]} Kxh8 {[%emt 0:00:00]} 50. Qb7 {[%emt 0:00:00]} Kg8 {[%emt 0:00:00]} 51. Kf3 {[%emt 0:00:00]} Kh8 {[%emt 0:00:00]} 52. Kg4 {[%emt 0:00:00]} Kg8 {[%emt 0:00:00]} 53. Kg5 {[%emt 0:00:00]} Kf8 {[%emt 0:00:00]} 54. Kf6 {[%emt 0:00:00]} Ke8 {[%emt 0:00:00]} 55. Qe7# {[%emt 0:03:00]} 1-0

[Event "FIDE WCCC Girls-10 2024"]
[Site "Montesilvano"]
[Date "2024.11.19"]
[Round "5.37"]
[White "Khelfallah, Ikhlas"]
[Black "Aragonda, Sahasra"]
[Result "1/2-1/2"]
[ECO "A04"]
[WhiteElo "1449"]
[BlackElo "1526"]
[Annotator "NA RC"]
[PlyCount "51"]
[EventDate "2024.11.18"]
[EventType "swiss"]
[EventCountry "ITA"]
[SourceTitle "playchess.com"]
[Source "ChessBase"]
[SourceQuality "1"]
[TimeControl "5400+30"]

1. e4 {[%emt 0:00:08]} c5 {[%emt 0:00:11]} 2. Nf3 {[%emt 0:00:13]} g6 {[%emt 0:00:26]} 3. d3 {[%emt 0:00:08]} Bg7 {[%emt 0:00:57]} 4. Nbd2 {[%emt 0:00:19]} d6 {[%emt 0:00:25]} 5. g3 {[%emt 0:00:19]} e5 {[%emt 0:01:17]} 6. Bg2 {[%emt 0:01:17]} Nc6 {[%emt 0:00:56]} 7. c3 {[%emt 0:01:11]} Nge7 {[%emt 0:00:18]} 8. O-O {[%emt 0:01:41]} O-O {[%emt 0:00:17]} 9. a4 {[%emt 0:01:40]} a5 {[%emt 0:02:41]} 10. Nc4 {[%emt 0:01:24]} Be6 {[%emt 0:04:00]} 11. Re1 {[%emt 0:07:09]} Bxc4 {[%emt 0:01:47]} 12. dxc4 {[%emt 0:00:36]} Qd7 {[%emt 0:04:09]} 13. Be3 {[%emt 0:02:30]} Rad8 {[%emt 0:03:14]} 14. Qc2 {[%emt 0:02:14]} Qc8 {[%emt 0:06:33]} 15. Rad1 {[%emt 0:01:49]} Kh8 {[%emt 0:07:08]} 16. Qd2 {[%emt 0:03:59]} b6 {[%emt 0:01:47]} 17. Bh6 {[%emt 0:04:04]} Qa6 {[%emt 0:13:07]} 18. b3 {[%emt 0:03:28]} Qc8 19. Bxg7+ {[%emt 0:02:58]} Kxg7 {[%emt 0:03:55]} 20. Ng5 {[%emt 0:04:43]} h6 {[%emt 0:03:50]} 21. Nf3 {[%emt 0:01:30]} Ng8 {[%emt 0:04:31]} 22. Qe2 {[%emt 0:10:48]} Nf6 {[%emt 0:03:37]} 23. Rd2 {[%emt 0:01:08]} Qe6 {[%emt 0:04:59]} 24. h3 {[%emt 0:14:27]} Rd7 {[%emt 0:03:07]} 25. Qf1 {[%emt 0:03:35]} Rdd8 {[%emt 0:02:20]} 26. Qe2 {[%emt 0:04:58]} 1/2-1/2

[Event "FIDE WCCC Girls-10 2024"]
[Site "Montesilvano"]
[Date "2024.11.19"]
[Round "5.38"]
[White "Nguyen, Lam Vy Le"]
[Black "Yang, Haeun"]
[Result "1-0"]
[ECO "C55"]
[WhiteElo "1728"]
[BlackElo "1475"]
[Annotator "NA RC"]
[PlyCount "67"]
[EventDate "2024.11.18"]
[EventType "swiss"]
[EventCountry "ITA"]
[SourceTitle "playchess.com"]
[Source "ChessBase"]
[SourceQuality "1"]
[TimeControl "5400+30"]

1. e4 {[%emt 0:00:03]} e5 {[%emt 0:00:05]} 2. Nf3 {[%emt 0:00:07]} Nc6 {[%emt 0:00:06]} 3. Bc4 {[%emt 0:00:06]} Nf6 {[%emt 0:00:05]} 4. d3 {[%emt 0:00:07]} d6 {[%emt 0:00:05]} 5. c3 {[%emt 0:00:21]} Be7 {[%emt 0:00:06]} 6. Nbd2 {[%emt 0:00:11]} Na5 {[%emt 0:00:12]} 7. Bb5+ {[%emt 0:00:17]} c6 {[%emt 0:00:02]} 8. Ba4 {[%emt 0:00:08]} b5 {[%emt 0:00:04]} 9. Bc2 {[%emt 0:00:09]} c5 {[%emt 0:00:07]} 10. Nf1 {[%emt 0:00:55]} Be6 {[%emt 0:01:03]} 11. Ng3 {[%emt 0:00:29]} O-O {[%emt 0:00:38]} 12. O-O {[%emt 0:00:53]} Qd7 {[%emt 0:00:02]} 13. Re1 {[%emt 0:01:13]} Bg4 {[%emt 0:00:13]} 14. h3 {[%emt 0:01:27]} Bh5 {[%emt 0:00:05]} 15. Nxh5 {[%emt 0:02:26]} Nxh5 {[%emt 0:00:07]} 16. Nxe5 {[%emt 0:01:44]} dxe5 {[%emt 0:00:53]} 17. Qxh5 {[%emt 0:00:08]} Bf6 {[%emt 0:00:46]} 18. Be3 {[%emt 0:01:48]} Rfc8 {[%emt 0:01:34]} 19. Rad1 {[%emt 0:02:09]} Qe6 {[%emt 0:00:45]} 20. Bb1 {[%emt 0:02:23]} c4 {[%emt 0:01:37]} 21. d4 {[%emt 0:03:15]} Qd6 {[%emt 0:04:13]} 22. dxe5 {[%emt 0:02:37]} Qxe5 {[%emt 0:00:11]} 23. Qxe5 {[%emt 0:00:10]} Bxe5 {[%emt 0:00:06]} 24. Rd5 {[%emt 0:00:11]} Bf6 {[%emt 0:02:31]} 25. Rxb5 {[%emt 0:01:23]} Nc6 {[%emt 0:00:54]} 26. Rc5 {[%emt 0:01:42]} Ne5 {[%emt 0:00:26]} 27. Rxc8+ {[%emt 0:01:15]} Rxc8 {[%emt 0:00:06]} 28. Bxa7 {[%emt 0:00:26]} Nd3 {[%emt 0:00:22]} 29. Bxd3 {[%emt 0:02:12]} cxd3 {[%emt 0:00:06]} 30. Be3 {[%emt 0:01:42]} Kf8 {[%emt 0:01:48]} 31. Rd1 {[%emt 0:01:00]} Rd8 {[%emt 0:00:13]} 32. f4 {[%emt 1:13:33]} Ke7 33. e5 {[%emt 0:00:00]} Bh4 {[%emt 0:00:37]} 34. Bf2 {[%emt 0:00:00]} 1-0

[Event "FIDE WCCC Girls-10 2024"]
[Site "Montesilvano"]
[Date "2024.11.19"]
[Round "5.39"]
[White "Serradell Munoz, Silvia"]
[Black "Kovacikova, Simona"]
[Result "1-0"]
[ECO "C45"]
[WhiteElo "1670"]
[BlackElo "1412"]
[Annotator "NA RC"]
[PlyCount "109"]
[EventDate "2024.11.18"]
[EventType "swiss"]
[EventCountry "ITA"]
[SourceTitle "playchess.com"]
[Source "ChessBase"]
[SourceQuality "1"]
[TimeControl "5400+30"]

1. e4 {[%emt 0:00:10]} e5 {[%emt 0:00:11]} 2. Nf3 {[%emt 0:00:23]} Nc6 {[%emt 0:00:08]} 3. d4 {[%emt 0:00:38]} exd4 {[%emt 0:00:17]} 4. Nxd4 {[%emt 0:00:39]} Nf6 {[%emt 0:00:14]} 5. Nxc6 {[%emt 0:00:40]} bxc6 {[%emt 0:00:25]} 6. e5 {[%emt 0:01:00]} Qe7 {[%emt 0:00:19]} 7. Qe2 {[%emt 0:00:33]} Nd5 {[%emt 0:00:22]} 8. c4 {[%emt 0:00:54]} Ba6 {[%emt 0:00:19]} 9. b3 {[%emt 0:00:22]} g6 {[%emt 0:00:34]} 10. Bb2 {[%emt 0:02:08]} Bg7 {[%emt 0:00:30]} 11. Nd2 {[%emt 0:07:05]} O-O-O {[%emt 0:02:11]} 12. Qe4 {[%emt 0:01:54]} Nb6 {[%emt 0:06:34]} 13. Bd3 {[%emt 0:01:21]} Rhe8 {[%emt 0:02:00]} 14. Nf3 {[%emt 0:01:20]} f6 {[%emt 0:01:28]} 15. O-O {[%emt 0:01:22]} fxe5 {[%emt 0:00:55]} 16. Rfe1 {[%emt 0:00:59]} d5 {[%emt 0:05:11]} 17. cxd5 {[%emt 0:00:59]} Bxd3 {[%emt 0:00:38]} 18. Qxd3 {[%emt 0:00:17]} Rxd5 {[%emt 0:09:10]} 19. Qe4 {[%emt 0:04:46]} Nd7 20. Qc4 {[%emt 0:06:18]} Qc5 {[%emt 0:13:09]} 21. Qa6+ {[%emt 0:01:03]} Kd8 {[%emt 0:03:08]} 22. Rac1 {[%emt 0:01:09]} Nb8 {[%emt 0:07:03]} 23. Qa4 {[%emt 0:02:52]} Qa5 {[%emt 0:05:20]} 24. Qh4+ {[%emt 0:01:08]} Kc8 {[%emt 0:14:50]} 25. Qxh7 {[%emt 0:01:58]} Qxa2 {[%emt 0:03:45]} 26. Qxg7 {[%emt 0:00:23]} Qxb2 {[%emt 0:00:31]} 27. Qxg6 {[%emt 0:00:21]} Red8 {[%emt 0:00:57]} 28. Qf5+ {[%emt 0:00:53]} Kb7 {[%emt 0:24:21]} 29. Rb1 {[%emt 0:00:38]} Qc3 {[%emt 0:00:30]} 30. Rec1 {[%emt 0:00:44]} Qb4 {[%emt 0:00:00]} 31. h3 {[%emt 0:08:30]} Rf8 {[%emt 0:00:00]} 32. Qg6 {[%emt 0:03:26]} Qf4 {[%emt 0:00:00]} 33. Rc4 {[%emt 0:02:01]} Qf5 {[%emt 0:00:00]} 34. Qxf5 {[%emt 0:00:55]} Rxf5 {[%emt 0:00:00]} 35. Re4 {[%emt 0:00:57]} Nd7 {[%emt 0:00:00]} 36. Rbe1 {[%emt 0:01:23]} Kb6 {[%emt 0:00:00]} 37. R1e3 {[%emt 0:00:41]} Kc5 {[%emt 0:00:00]} 38. g4 {[%emt 0:00:25]} Rf8 {[%emt 0:01:15]} 39. Nxe5 {[%emt 0:00:45]} Nxe5 {[%emt 0:00:08]} 40. Rxe5 {[%emt 0:00:08]} Rb8 {[%emt 0:00:54]} 41. R5e4 {[%emt 0:00:45]} Rd1+ {[%emt 0:01:28]} 42. Kg2 {[%emt 0:00:10]} Rb1 {[%emt 0:00:15]} 43. Rc4+ {[%emt 0:00:14]} Kb5 {[%emt 0:01:19]} 44. h4 {[%emt 0:00:32]} Rb2 {[%emt 0:00:57]} 45. g5 {[%emt 0:01:24]} Rg8 {[%emt 0:00:25]} 46. Rg4 {[%emt 0:00:51]} Rd2 {[%emt 0:00:23]} 47. g6 {[%emt 0:01:40]} Rd6 {[%emt 0:00:42]} 48. h5 {[%emt 0:00:15]} a5 {[%emt 0:00:47]} 49. g7 {[%emt 0:00:32]} Rh6 {[%emt 0:00:16]} 50. Re5+ {[%emt 0:01:01]} Kb6 {[%emt 0:00:57]} 51. Rf5 {[%emt 0:00:16]} Kb7 {[%emt 0:00:23]} 52. Rf8 {[%emt 0:00:35]} Rxg7 {[%emt 0:00:17]} 53. Rxg7 {[%emt 0:00:15]} Rxh5 {[%emt 0:00:11]} 54. Rff7 {[%emt 0:00:49]} Rh4 {[%emt 0:00:54]} 55. Rxc7+ {[%emt 0:00:18]} 1-0

[Event "FIDE WCCC Girls-10 2024"]
[Site "Montesilvano"]
[Date "2024.11.19"]
[Round "5.40"]
[White "Vitsiuk, Aleksandra"]
[Black "Song, Rina"]
[Result "1-0"]
[ECO "B13"]
[WhiteElo "1476"]
[BlackElo "1599"]
[Annotator "NA RC"]
[PlyCount "119"]
[EventDate "2024.11.18"]
[EventType "swiss"]
[EventCountry "ITA"]
[SourceTitle "playchess.com"]
[Source "ChessBase"]
[SourceQuality "1"]
[TimeControl "5400+30"]

1. e4 {[%emt 0:00:03]} c6 {[%emt 0:00:11]} 2. d4 {[%emt 0:00:29]} d5 {[%emt 0:00:09]} 3. exd5 {[%emt 0:00:35]} cxd5 {[%emt 0:00:08]} 4. Bd3 {[%emt 0:00:48]} Nc6 {[%emt 0:00:28]} 5. c3 {[%emt 0:00:49]} Qc7 {[%emt 0:00:29]} 6. Ne2 {[%emt 0:02:28]} Bg4 {[%emt 0:00:18]} 7. Qb3 {[%emt 0:01:55]} e6 {[%emt 0:02:21]} 8. Bf4 {[%emt 0:02:02]} Qd7 {[%emt 0:04:26]} 9. Ng3 {[%emt 0:01:12]} Nf6 {[%emt 0:01:08]} 10. h3 {[%emt 0:04:08]} Bh5 {[%emt 0:00:13]} 11. Nxh5 {[%emt 0:00:54]} Nxh5 {[%emt 0:00:06]} 12. Bh2 {[%emt 0:02:17]} Be7 {[%emt 0:00:16]} 13. Nd2 {[%emt 0:02:41]} Nf6 {[%emt 0:02:56]} 14. Nf3 {[%emt 0:02:24]} O-O {[%emt 0:00:43]} 15. O-O {[%emt 0:01:28]} Na5 {[%emt 0:05:20]} 16. Qc2 {[%emt 0:01:54]} Rac8 {[%emt 0:01:30]} 17. Be5 {[%emt 0:01:50]} h6 {[%emt 0:00:25]} 18. Bh2 {[%emt 0:06:34]} b5 {[%emt 0:01:01]} 19. Ne5 {[%emt 0:02:38]} Qb7 {[%emt 0:00:45]} 20. Qe2 {[%emt 0:01:24]} a6 {[%emt 0:05:04]} 21. a4 {[%emt 0:00:51]} Nc4 {[%emt 0:05:02]} 22. axb5 {[%emt 0:04:18]} axb5 {[%emt 0:01:01]} 23. Rfc1 {[%emt 0:01:16]} Qb6 {[%emt 0:01:11]} 24. b3 {[%emt 0:01:40]} Nd6 {[%emt 0:00:21]} 25. Bb1 {[%emt 0:02:20]} b4 {[%emt 0:03:49]} 26. Qd3 {[%emt 0:00:30]} Nde4 {[%emt 0:01:51]} 27. f3 {[%emt 0:00:46]} Ng5 {[%emt 0:07:45]} 28. h4 {[%emt 0:00:15]} Ngh7 {[%emt 0:00:19]} 29. Nd7 {[%emt 0:00:11]} Qc6 {[%emt 0:00:42]} 30. Nxf8 {[%emt 0:00:13]} Rxf8 {[%emt 0:00:06]} 31. Qa6 {[%emt 0:01:20]} Qxa6 {[%emt 0:05:07]} 32. Rxa6 {[%emt 0:00:07]} Rc8 {[%emt 0:00:22]} 33. c4 {[%emt 0:00:20]} dxc4 {[%emt 0:01:33]} 34. Rxc4 {[%emt 0:00:09]} Rd8 {[%emt 0:00:59]} 35. Rac6 {[%emt 0:00:40]} Bf8 {[%emt 0:00:21]} 36. Bc7 {[%emt 0:01:35]} Rd7 {[%emt 0:00:20]} 37. Bxh7+ {[%emt 0:00:54]} Nxh7 {[%emt 0:00:13]} 38. Ba5 {[%emt 0:00:08]} Rb7 {[%emt 0:01:46]} 39. Rc8 {[%emt 0:00:07]} g6 {[%emt 0:00:46]} 40. Bxb4 {[%emt 0:00:17]} Kg7 {[%emt 0:00:10]} 41. Bxf8+ {[%emt 0:00:10]} Nxf8 {[%emt 0:00:04]} 42. b4 {[%emt 0:00:27]} Nd7 {[%emt 0:00:14]} 43. R8c7 {[%emt 0:00:16]} Rxc7 {[%emt 0:00:16]} 44. Rxc7 {[%emt 0:00:05]} Nb6 {[%emt 0:00:19]} 45. b5 {[%emt 0:00:10]} Nd5 {[%emt 0:00:06]} 46. Rb7 {[%emt 0:00:07]} Kf6 {[%emt 0:01:32]} 47. Kf2 {[%emt 0:00:08]} Nc3 {[%emt 0:00:33]} 48. b6 {[%emt 0:00:11]} Nd5 {[%emt 0:00:06]} 49. Rb8 {[%emt 0:00:29]} Nxb6 {[%emt 0:00:14]} 50. Rxb6 {[%emt 0:00:06]} Ke7 {[%emt 0:02:23]} 51. Ke3 {[%emt 0:00:06]} f5 {[%emt 0:00:12]} 52. Kf4 {[%emt 0:00:07]} Kf6 {[%emt 0:00:15]} 53. d5 {[%emt 0:00:05]} Ke7 {[%emt 0:00:16]} 54. Rxe6+ {[%emt 0:00:06]} Kf7 {[%emt 0:00:48]} 55. h5 {[%emt 0:00:05]} g5+ {[%emt 0:01:09]} 56. Kxf5 {[%emt 0:00:06]} Kf8 {[%emt 0:00:11]} 57. d6 {[%emt 0:00:05]} Kg7 {[%emt 0:00:09]} 58. d7 {[%emt 0:00:10]} Kh7 {[%emt 0:00:27]} 59. d8=Q {[%emt 0:00:12]} Kg7 {[%emt 0:00:13]} 60. Re7# {[%emt 0:00:12]} 1-0

[Event "FIDE WCCC Girls-10 2024"]
[Site "Montesilvano"]
[Date "2024.11.19"]
[Round "5.43"]
[White "Damaso Tacoronte, Carolina"]
[Black "Mence, Jasmina"]
[Result "1/2-1/2"]
[ECO "C50"]
[WhiteElo "1875"]
[BlackElo "1542"]
[Annotator "NA RC"]
[PlyCount "73"]
[EventDate "2024.11.18"]
[EventType "swiss"]
[EventCountry "ITA"]
[SourceTitle "playchess.com"]
[Source "ChessBase"]
[SourceQuality "1"]
[TimeControl "5400+30"]

1. e4 {[%emt 0:00:03]} e5 {[%emt 0:00:10]} 2. Nf3 {[%emt 0:00:12]} Nc6 {[%emt 0:00:14]} 3. Bc4 {[%emt 0:00:25]} Nf6 {[%emt 0:00:11]} 4. O-O {[%emt 0:01:03]} h6 {[%emt 0:05:55]} 5. d4 {[%emt 0:01:41]} d6 {[%emt 0:06:52]} 6. dxe5 {[%emt 0:04:31]} dxe5 {[%emt 0:02:33]} 7. Qxd8+ {[%emt 0:00:50]} Kxd8 {[%emt 0:00:47]} 8. Bxf7 {[%emt 0:01:32]} Bc5 {[%emt 0:06:04]} 9. Bd5 {[%emt 0:06:22]} Re8 {[%emt 0:03:53]} 10. Bxc6 {[%emt 0:03:00]} bxc6 {[%emt 0:00:27]} 11. Nc3 {[%emt 0:03:36]} Ba6 {[%emt 0:03:11]} 12. Rd1+ {[%emt 0:02:01]} Kc8 {[%emt 0:05:05]} 13. Na4 {[%emt 0:02:59]} Nxe4 {[%emt 0:08:27]} 14. Nxc5 {[%emt 0:01:05]} Nxc5 {[%emt 0:00:25]} 15. Re1 {[%emt 0:03:32]} e4 {[%emt 0:02:50]} 16. Nd4 {[%emt 0:02:58]} Kb7 {[%emt 0:07:18]} 17. Be3 {[%emt 0:07:48]} Rad8 {[%emt 0:05:48]} 18. Nf5 {[%emt 0:03:27]} Ne6 {[%emt 0:03:07]} 19. Ng3 {[%emt 0:00:11]} Nd4 {[%emt 0:05:05]} 20. Bxd4 {[%emt 0:02:18]} Rxd4 {[%emt 0:00:28]} 21. Nf5 {[%emt 0:00:43]} Rd7 {[%emt 0:01:47]} 22. Ng3 {[%emt 0:00:51]} Rde7 {[%emt 0:01:20]} 23. Nf5 {[%emt 0:01:13]} Rf7 {[%emt 0:01:28]} 24. Ng3 {[%emt 0:00:46]} Rf4 {[%emt 0:00:45]} 25. Nh5 {[%emt 0:00:40]} Rg4 {[%emt 0:01:40]} 26. h3 {[%emt 0:01:06]} Rg5 {[%emt 0:01:09]} 27. Ng3 {[%emt 0:01:29]} Rge5 {[%emt 0:00:42]} 28. Rad1 {[%emt 0:01:53]} e3 {[%emt 0:01:27]} 29. fxe3 {[%emt 0:00:29]} Rxe3 {[%emt 0:00:24]} 30. Rxe3 {[%emt 0:00:16]} Rxe3 {[%emt 0:00:24]} 31. Nf5 {[%emt 0:00:12]} Re5 {[%emt 0:05:45]} 32. Nxg7 {[%emt 0:00:57]} Bc4 {[%emt 0:02:10]} 33. b3 {[%emt 0:01:41]} Bd5 {[%emt 0:03:03]} 34. c4 {[%emt 0:00:29]} Bxg2 {[%emt 0:01:56]} 35. Rd3 {[%emt 0:02:17]} Rg5 {[%emt 0:03:04]} 36. Ne6 {[%emt 0:00:27]} Rg8 {[%emt 0:01:08]} 37. Kf2 {[%emt 0:02:07]} 1/2-1/2